[Event "*** Biggest EVER Titled Tuesday"]
[Site "Chess.com"]
[Date "2018.04.17"]
[Round "6"]
[White "dretch"]
[Black "tigra"]
[Result "1-0"]
[WhiteElo "2709"]
[BlackElo "2692"]
[TimeControl "180+2"]
[EndTime "14:25:47 PDT"]
[Termination "dretch won by resignation"]

1. d4 {[%clk 0:03:01.9]} 1... Nf6 {[%clk 0:02:59.7]} 2. c4 {[%clk 0:03:02.4]}
2... g6 {[%clk 0:03:01]} 3. Nc3 {[%clk 0:03:03.3]} 3... d5 {[%clk 0:03:02.2]} 4.
e3 {[%clk 0:03:04.4]} 4... Bg7 {[%clk 0:03:02.5]} 5. Qa4+ {[%clk 0:03:05.5]}
5... Nbd7 {[%clk 0:03:00.7]} 6. cxd5 {[%clk 0:03:04]} 6... O-O {[%clk
0:02:59.9]} 7. e4 {[%clk 0:03:02.7]} 7... c5 {[%clk 0:02:46.7]} 8. dxc6 {[%clk
0:03:02.2]} 8... Nb6 {[%clk 0:02:46.7]} 9. Qd1 {[%clk 0:03:00]} 9... bxc6 {[%clk
0:02:44.4]} 10. Be2 {[%clk 0:02:55.3]} 10... c5 {[%clk 0:02:25.5]} 11. dxc5
{[%clk 0:02:54.7]} 11... Nbd7 {[%clk 0:02:17.1]} 12. c6 {[%clk 0:02:48.9]} 12...
Ne5 {[%clk 0:02:16]} 13. Qxd8 {[%clk 0:02:48.4]} 13... Rxd8 {[%clk 0:02:17.9]}
14. Nf3 {[%clk 0:02:45.2]} 14... Nxc6 {[%clk 0:02:16.5]} 15. O-O {[%clk
0:02:41.3]} 15... Rb8 {[%clk 0:02:11.4]} 16. Rb1 {[%clk 0:02:42.5]} 16... Nd7
{[%clk 0:01:41.2]} 17. Bf4 {[%clk 0:02:39.9]} 17... Rb4 {[%clk 0:01:32.6]} 18.
Nd5 {[%clk 0:02:18.5]} 18... Rxe4 {[%clk 0:01:26]} 19. Bd3 {[%clk 0:02:18.2]}
19... Nc5 {[%clk 0:00:37.1]} 20. Bxe4 {[%clk 0:02:16]} 20... Nxe4 {[%clk
0:00:39]} 21. Rfd1 {[%clk 0:02:15.3]} 21... Rf8 {[%clk 0:00:34.2]} 22. Rbc1
{[%clk 0:02:14.2]} 22... e6 {[%clk 0:00:30.7]} 23. Rxc6 {[%clk 0:02:03.9]} 23...
exd5 {[%clk 0:00:31.6]} 24. Rc7 {[%clk 0:02:00.1]} 24... Bxb2 {[%clk 0:00:24.9]}
25. Rxd5 {[%clk 0:01:59]} 25... Be6 {[%clk 0:00:20.8]} 26. Rb5 {[%clk
0:01:55.3]} 26... Bf6 {[%clk 0:00:17.8]} 27. Be5 {[%clk 0:01:40.2]} 27... Bxa2
{[%clk 0:00:17.8]} 28. Bxf6 {[%clk 0:01:38.8]} 28... Nxf6 {[%clk 0:00:18.5]} 29.
Rxa7 {[%clk 0:01:39.9]} 29... Rc8 {[%clk 0:00:18.2]} 30. h3 {[%clk 0:01:39.1]}
30... Bd5 {[%clk 0:00:18.5]} 31. Ne5 {[%clk 0:01:36]} 31... Be6 {[%clk
0:00:17.3]} 32. Rbb7 {[%clk 0:01:34.1]} 32... Rf8 {[%clk 0:00:14.2]} 33. Nc6
{[%clk 0:01:34.2]} 33... Nd5 {[%clk 0:00:14]} 34. Rb8 {[%clk 0:01:33.3]} 34...
Rxb8 {[%clk 0:00:13.7]} 35. Nxb8 {[%clk 0:01:35.2]} 35... h5 {[%clk 0:00:14.4]}
36. Kh2 {[%clk 0:01:34.1]} 36... Kf8 {[%clk 0:00:15]} 37. Nc6 {[%clk 0:01:34.5]}
37... Nf6 {[%clk 0:00:16]} 38. Nd4 {[%clk 0:01:34.7]} 38... Bd5 {[%clk
0:00:16.9]} 39. Nc2 {[%clk 0:01:34.9]} 39... Bc4 {[%clk 0:00:17.5]} 40. Ne3
{[%clk 0:01:35.7]} 40... Be6 {[%clk 0:00:18.4]} 41. Kg3 {[%clk 0:01:34.7]} 41...
Ne4+ {[%clk 0:00:18.9]} 42. Kf3 {[%clk 0:01:36]} 42... Nd2+ {[%clk 0:00:19.5]}
43. Ke2 {[%clk 0:01:36.9]} 43... Ne4 {[%clk 0:00:20.7]} 44. Rb7 {[%clk
0:01:31.9]} 44... Kg7 {[%clk 0:00:20.1]} 45. Rb4 {[%clk 0:01:32.2]} 45... Nd6
{[%clk 0:00:20.1]} 46. Kd3 {[%clk 0:01:32]} 46... Kf6 {[%clk 0:00:20.9]} 47. Rb6
{[%clk 0:01:30.3]} 47... Ke7 {[%clk 0:00:21.8]} 48. Kd4 {[%clk 0:01:30.1]} 48...
Kd7 {[%clk 0:00:21.7]} 49. Ke5 {[%clk 0:01:28]} 49... Ne8 {[%clk 0:00:22.2]} 50.
Ra6 {[%clk 0:01:27.5]} 50... Ke7 {[%clk 0:00:21.4]} 51. Ra7+ {[%clk 0:01:17.3]}
51... Kf8 {[%clk 0:00:22]} 52. Nd5 {[%clk 0:01:17.8]} 52... Kg7 {[%clk
0:00:15.8]} 53. h4 {[%clk 0:01:12.7]} 53... Bf5 {[%clk 0:00:11.4]} 54. Ra8
{[%clk 0:01:06]} 54... f6+ {[%clk 0:00:11.6]} 55. Kd4 {[%clk 0:01:05]} 55... Nd6
{[%clk 0:00:13.1]} 56. Ra7+ {[%clk 0:01:00.8]} 56... Nf7 {[%clk 0:00:13.4]} 57.
Ra6 {[%clk 0:00:59.5]} 57... Ne5 {[%clk 0:00:05.9]} 58. Nxf6 {[%clk 0:00:54.1]}
58... Bc8 {[%clk 0:00:03.8]} 59. Rd6 {[%clk 0:00:39.8]} 59... Nf7 {[%clk
0:00:04.6]} 60. Rb6 {[%clk 0:00:37.8]} 60... Nh6 {[%clk 0:00:04.3]} 61. Ne8+
{[%clk 0:00:31.3]} 61... Kf8 {[%clk 0:00:04]} 62. Nd6 {[%clk 0:00:33.2]} 62...
Bd7 {[%clk 0:00:03.8]} 63. Rb7 {[%clk 0:00:26]} 63... Ke7 {[%clk 0:00:04.9]} 64.
Ne4 {[%clk 0:00:27.2]} 64... Nf5+ {[%clk 0:00:05]} 65. Ke5 {[%clk 0:00:28.3]}
65... Kd8 {[%clk 0:00:05.6]} 66. g3 {[%clk 0:00:26]} 66... Bc6 {[%clk
0:00:06.6]} 67. Rb2 {[%clk 0:00:23.9]} 67... Ke7 {[%clk 0:00:06.9]} 68. Ng5
{[%clk 0:00:24]} 68... Nd6 {[%clk 0:00:06.6]} 69. Rc2 {[%clk 0:00:23]} 69... Bd7
{[%clk 0:00:03]} 70. Kd5 {[%clk 0:00:22.4]} 70... Nf5 {[%clk 0:00:03.4]} 71.
Re2+ {[%clk 0:00:23.3]} 71... Kf6 {[%clk 0:00:04.3]} 72. Ne4+ {[%clk 0:00:24.6]}
72... Kf7 {[%clk 0:00:05.3]} 73. Nd6+ {[%clk 0:00:25.2]} 73... Kf6 {[%clk
0:00:05.8]} 74. Nxf5 {[%clk 0:00:25.5]} 74... Kxf5 {[%clk 0:00:07.1]} 75. Re5+
{[%clk 0:00:23.6]} 75... Kg4 {[%clk 0:00:07.7]} 76. Rg5+ {[%clk 0:00:24]} 76...
Kf3 {[%clk 0:00:08.8]} 77. Rxg6 {[%clk 0:00:21.6]} 77... Kxf2 {[%clk 0:00:09.9]}
78. Ke4 {[%clk 0:00:22.9]} 78... Kg2 {[%clk 0:00:09.1]} 79. Kf4 {[%clk 0:00:24]}
1-0

[Event "*** Biggest EVER Titled Tuesday"]
[Site "Chess.com"]
[Date "2018.04.17"]
[Round "6"]
[White "GianmarcoVaR"]
[Black "Anar_Aliakbarov"]
[Result "0-1"]
[WhiteElo "2516"]
[BlackElo "2389"]
[TimeControl "180+2"]
[EndTime "14:25:55 PDT"]
[Termination "Anar_Aliakbarov won by resignation"]

1. d4 {[%clk 0:02:54.9]} 1... d5 {[%clk 0:02:58.3]} 2. Nf3 {[%clk 0:02:55.6]}
2... Nf6 {[%clk 0:02:58.7]} 3. c4 {[%clk 0:02:56.9]} 3... e6 {[%clk 0:02:59.3]}
4. g3 {[%clk 0:02:58.2]} 4... Be7 {[%clk 0:02:59.6]} 5. Bg2 {[%clk 0:02:59.6]}
5... O-O {[%clk 0:03:01]} 6. O-O {[%clk 0:03:00.8]} 6... dxc4 {[%clk 0:03:02.5]}
7. Qc2 {[%clk 0:03:01.1]} 7... a6 {[%clk 0:03:03.6]} 8. Qxc4 {[%clk 0:03:00.1]}
8... b5 {[%clk 0:03:02.2]} 9. Qc2 {[%clk 0:03:01.1]} 9... Bb7 {[%clk 0:03:02.1]}
10. Bf4 {[%clk 0:03:02]} 10... Nc6 {[%clk 0:03:01.3]} 11. Rd1 {[%clk 0:03:01.2]}
11... Nd5 {[%clk 0:03:00.7]} 12. Bd2 {[%clk 0:03:00.1]} 12... Nb6 {[%clk
0:02:52.2]} 13. Be1 {[%clk 0:02:56.4]} 13... Bd6 {[%clk 0:02:45.6]} 14. Nc3
{[%clk 0:02:51.4]} 14... Nb4 {[%clk 0:02:38.4]} 15. Qc1 {[%clk 0:02:49.5]} 15...
Qe7 {[%clk 0:02:36.7]} 16. a3 {[%clk 0:02:19.7]} 16... N4d5 {[%clk 0:02:36.2]}
17. Ne4 {[%clk 0:02:19.8]} 17... Rac8 {[%clk 0:02:31.1]} 18. Nxd6 {[%clk
0:02:14.5]} 18... cxd6 {[%clk 0:02:29.9]} 19. Qb1 {[%clk 0:02:12.3]} 19... f5
{[%clk 0:02:25]} 20. Rc1 {[%clk 0:01:26.6]} 20... Rxc1 {[%clk 0:02:19.3]} 21.
Qxc1 {[%clk 0:01:27.6]} 21... Rc8 {[%clk 0:02:20.8]} 22. Qd1 {[%clk 0:01:28.9]}
22... Na4 {[%clk 0:02:18.4]} 23. Rb1 {[%clk 0:01:25.9]} 23... Ndb6 {[%clk
0:02:16.4]} 24. Nh4 {[%clk 0:01:03.9]} 24... Bxg2 {[%clk 0:01:08.3]} 25. Nxg2
{[%clk 0:01:04.1]} 25... Rc6 {[%clk 0:01:08]} 26. Nf4 {[%clk 0:00:53.7]} 26...
Kf7 {[%clk 0:00:51.1]} 27. d5 {[%clk 0:00:32.6]} 27... exd5 {[%clk 0:00:48.6]}
28. Nxd5 {[%clk 0:00:21.5]} 28... Qe4 {[%clk 0:00:46.1]} 29. Nf4 {[%clk
0:00:14.2]} 29... g5 {[%clk 0:00:37.5]} 30. Nd3 {[%clk 0:00:13.9]} 30... Rc7
{[%clk 0:00:22.1]} 31. Bd2 {[%clk 0:00:07.7]} 31... Kg6 {[%clk 0:00:18.4]} 32.
Rc1 {[%clk 0:00:07.5]} 32... Re7 {[%clk 0:00:13.3]} 33. Be3 {[%clk 0:00:05.2]}
33... Nc4 {[%clk 0:00:12.7]} 34. Qc2 {[%clk 0:00:03.2]} 34... Nxe3 {[%clk
0:00:12.3]} 35. fxe3 {[%clk 0:00:03.8]} 35... Qxe3+ {[%clk 0:00:13.7]} 36. Kf1
{[%clk 0:00:04.4]} 36... Qe4 {[%clk 0:00:10.4]} 37. Qd2 {[%clk 0:00:05.2]} 37...
Qh1+ {[%clk 0:00:11.1]} 38. Kf2 {[%clk 0:00:05.1]} 38... Qxh2+ {[%clk
0:00:12.5]} 39. Kf1 {[%clk 0:00:06.1]} 39... Qxg3 {[%clk 0:00:10.7]} 40. Nf2
{[%clk 0:00:06.9]} 40... Nc5 {[%clk 0:00:06.5]} 41. Rc3 {[%clk 0:00:08]} 41...
Qe5 {[%clk 0:00:05.8]} 42. Rh3 {[%clk 0:00:05]} 42... h5 {[%clk 0:00:05.9]} 43.
Qd1 {[%clk 0:00:02.6]} 43... Ne4 {[%clk 0:00:06.5]} 44. e3 {[%clk 0:00:03.3]}
44... Ng3+ {[%clk 0:00:05.5]} 45. Kg2 {[%clk 0:00:03.8]} 45... h4 {[%clk
0:00:06.5]} 46. e4 {[%clk 0:00:03.2]} 46... fxe4 {[%clk 0:00:06.9]} 47. Qg4
{[%clk 0:00:03.1]} 47... Qf5 {[%clk 0:00:07.3]} 48. Rxh4 {[%clk 0:00:03.1]}
48... Qxg4 {[%clk 0:00:07.3]} 49. Rxg4 {[%clk 0:00:04.1]} 49... Nf5 {[%clk
0:00:06.8]} 50. Nxe4 {[%clk 0:00:05.1]} 50... Ne3+ {[%clk 0:00:07.5]} 51. Kf3
{[%clk 0:00:06.3]} 51... Nxg4 {[%clk 0:00:09.4]} 52. Nxd6 {[%clk 0:00:07.8]}
52... Nf6 {[%clk 0:00:10.2]} 53. a4 {[%clk 0:00:06.8]} 53... bxa4 {[%clk
0:00:10.5]} 54. Nc4 {[%clk 0:00:07.7]} 54... g4+ {[%clk 0:00:11.3]} 55. Kg3
{[%clk 0:00:08.2]} 55... Rb7 {[%clk 0:00:13.2]} 56. Ne5+ {[%clk 0:00:08.1]}
56... Kf5 {[%clk 0:00:14.4]} 57. Nc4 {[%clk 0:00:09.2]} 57... Rb3+ {[%clk
0:00:15.6]} 58. Kf2 {[%clk 0:00:08.2]} 58... Ne4+ {[%clk 0:00:17.5]} 59. Ke2
{[%clk 0:00:08.5]} 59... g3 {[%clk 0:00:19.4]} 60. Kf1 {[%clk 0:00:07.7]} 60...
Kg4 {[%clk 0:00:19.9]} 61. Kg2 {[%clk 0:00:08.3]} 61... a3 {[%clk 0:00:18.4]}
62. bxa3 {[%clk 0:00:09]} 62... Rc3 {[%clk 0:00:19.6]} 63. Ne5+ {[%clk
0:00:07.5]} 63... Kf5 {[%clk 0:00:21]} 64. Nf3 {[%clk 0:00:07.6]} 64... Rc2+
{[%clk 0:00:22]} 65. Kg1 {[%clk 0:00:09]} 65... Kf4 {[%clk 0:00:22.7]} 66. Nd4
{[%clk 0:00:09.6]} 66... Rc1+ {[%clk 0:00:22.9]} 67. Kg2 {[%clk 0:00:10.4]}
67... Rd1 {[%clk 0:00:22.2]} 68. Ne2+ {[%clk 0:00:07.8]} 68... Ke3 {[%clk
0:00:22.1]} 69. Ng1 {[%clk 0:00:06.8]} 69... Rxg1+ {[%clk 0:00:21.9]} 70. Kxg1
{[%clk 0:00:07.7]} 70... Kf3 {[%clk 0:00:23.8]} 71. a4 {[%clk 0:00:09.2]} 71...
g2 {[%clk 0:00:25.7]} 72. a5 {[%clk 0:00:10.3]} 72... Nc3 {[%clk 0:00:26.9]} 73.
Kh2 {[%clk 0:00:11.4]} 73... Kf2 {[%clk 0:00:26.9]} 74. Kh3 {[%clk 0:00:13.1]}
74... g1=Q {[%clk 0:00:28.3]} 75. Kh4 {[%clk 0:00:14.3]} 75... Qg6 {[%clk
0:00:29.8]} 0-1

[Event "*** Biggest EVER Titled Tuesday"]
[Site "Chess.com"]
[Date "2018.04.17"]
[Round "6"]
[White "GeorgMeier"]
[Black "TheBigBoss04"]
[Result "1/2-1/2"]
[WhiteElo "2769"]
[BlackElo "2529"]
[TimeControl "180+2"]
[EndTime "14:25:58 PDT"]
[Termination "Game drawn - insufficient material"]

1. Nf3 {[%clk 0:03:01.9]} 1... g6 {[%clk 0:03:01.1]} 2. g3 {[%clk 0:03:03.1]}
2... Bg7 {[%clk 0:03:02.8]} 3. d4 {[%clk 0:03:05]} 3... Nf6 {[%clk 0:03:04.5]}
4. Bg2 {[%clk 0:03:06.5]} 4... O-O {[%clk 0:03:06.2]} 5. O-O {[%clk 0:03:08.1]}
5... d6 {[%clk 0:03:07.9]} 6. b3 {[%clk 0:03:09.6]} 6... Bf5 {[%clk 0:03:09.5]}
7. Bb2 {[%clk 0:03:10.9]} 7... Nc6 {[%clk 0:03:05.3]} 8. Nbd2 {[%clk 0:03:12.1]}
8... Ne4 {[%clk 0:03:06.5]} 9. Re1 {[%clk 0:03:13.5]} 9... Nxd2 {[%clk
0:03:06.8]} 10. Qxd2 {[%clk 0:03:15.3]} 10... Be4 {[%clk 0:03:07.5]} 11. Rad1
{[%clk 0:03:15.2]} 11... d5 {[%clk 0:03:08.4]} 12. c4 {[%clk 0:03:16.5]} 12...
e6 {[%clk 0:03:09.4]} 13. Qc1 {[%clk 0:03:12.6]} 13... h6 {[%clk 0:03:08.8]} 14.
e3 {[%clk 0:03:03.6]} 14... Nb4 {[%clk 0:03:04.9]} 15. Ba3 {[%clk 0:03:03.4]}
15... a5 {[%clk 0:02:58.7]} 16. Re2 {[%clk 0:03:03.7]} 16... Re8 {[%clk
0:02:56.5]} 17. Ne5 {[%clk 0:03:04.5]} 17... Bxg2 {[%clk 0:02:55.2]} 18. Kxg2
{[%clk 0:03:06.4]} 18... c6 {[%clk 0:02:48.7]} 19. Bxb4 {[%clk 0:03:05.2]} 19...
axb4 {[%clk 0:02:49.4]} 20. Nd3 {[%clk 0:03:06.7]} 20... Qa5 {[%clk 0:02:49.3]}
21. Rc2 {[%clk 0:03:02.4]} 21... Rad8 {[%clk 0:02:44.7]} 22. Qd2 {[%clk
0:02:55.7]} 22... dxc4 {[%clk 0:02:33.5]} 23. Rxc4 {[%clk 0:02:50.7]} 23... Ra8
{[%clk 0:02:31.4]} 24. Qxb4 {[%clk 0:02:12.4]} 24... Qxa2 {[%clk 0:02:21.9]} 25.
Qxb7 {[%clk 0:02:05.1]} 25... Rab8 {[%clk 0:02:20.1]} 26. Qxc6 {[%clk
0:02:05.2]} 26... Qxb3 {[%clk 0:02:21.2]} 27. Rd2 {[%clk 0:02:00.4]} 27... Red8
{[%clk 0:02:11]} 28. Rcc2 {[%clk 0:01:40.6]} 28... Qa3 {[%clk 0:01:59.8]} 29.
Ra2 {[%clk 0:01:28.6]} 29... Qe7 {[%clk 0:01:56]} 30. Ra5 {[%clk 0:01:19.4]}
30... Rbc8 {[%clk 0:01:55.3]} 31. Qe4 {[%clk 0:01:14.9]} 31... Qd7 {[%clk
0:01:38.3]} 32. Rb2 {[%clk 0:01:13.1]} 32... Rc7 {[%clk 0:01:34]} 33. Nc5 {[%clk
0:01:07.3]} 33... Qc6 {[%clk 0:01:24.4]} 34. Rba2 {[%clk 0:01:00.1]} 34... Qxe4+
{[%clk 0:01:14.5]} 35. Nxe4 {[%clk 0:01:02]} 35... Bf8 {[%clk 0:01:15.9]} 36.
Ra7 {[%clk 0:00:56.3]} 36... Rxa7 {[%clk 0:01:11.9]} 37. Rxa7 {[%clk 0:00:58.2]}
37... Kg7 {[%clk 0:01:13.5]} 38. g4 {[%clk 0:00:59.2]} 38... Rd5 {[%clk
0:00:59.6]} 39. h3 {[%clk 0:00:58.6]} 39... Rb5 {[%clk 0:00:56.1]} 40. Rd7
{[%clk 0:00:48.4]} 40... Rb2 {[%clk 0:00:54.9]} 41. Ng3 {[%clk 0:00:36.4]} 41...
Bb4 {[%clk 0:00:51.5]} 42. Rb7 {[%clk 0:00:36.8]} 42... Bc3 {[%clk 0:00:46.3]}
43. Rxb2 {[%clk 0:00:37.4]} 43... Bxb2 {[%clk 0:00:48.1]} 44. Kf3 {[%clk
0:00:36.5]} 44... f5 {[%clk 0:00:49.1]} 45. Ne2 {[%clk 0:00:15.2]} 45... Kf6
{[%clk 0:00:49.3]} 46. Nf4 {[%clk 0:00:15.7]} 46... Ba1 {[%clk 0:00:43.6]} 47.
Nd3 {[%clk 0:00:16.2]} 47... Bc3 {[%clk 0:00:40.5]} 48. Kg3 {[%clk 0:00:16]}
48... Ba5 {[%clk 0:00:37.9]} 49. h4 {[%clk 0:00:13.2]} 49... Bc7+ {[%clk
0:00:39]} 50. Kh3 {[%clk 0:00:14.6]} 50... Bb8 {[%clk 0:00:38.1]} 51. f4 {[%clk
0:00:15.2]} 51... Bd6 {[%clk 0:00:38.7]} 52. g5+ {[%clk 0:00:15.6]} 52... hxg5
{[%clk 0:00:38.4]} 53. fxg5+ {[%clk 0:00:16.8]} 53... Kg7 {[%clk 0:00:38.5]} 54.
Kg2 {[%clk 0:00:18.1]} 54... Bc7 {[%clk 0:00:35.6]} 55. Kf3 {[%clk 0:00:19.2]}
55... Kf7 {[%clk 0:00:36.3]} 56. Nf4 {[%clk 0:00:18.9]} 56... e5 {[%clk
0:00:34.6]} 57. Nd5 {[%clk 0:00:17.8]} 57... e4+ {[%clk 0:00:36]} 58. Kg2 {[%clk
0:00:18.4]} 58... Bd6 {[%clk 0:00:37.1]} 59. Kf2 {[%clk 0:00:18.3]} 59... Ke6
{[%clk 0:00:37.6]} 60. Nf4+ {[%clk 0:00:19.1]} 60... Kf7 {[%clk 0:00:39.2]} 61.
Ne2 {[%clk 0:00:17.3]} 61... Bb4 {[%clk 0:00:39.2]} 62. Ng3 {[%clk 0:00:17.6]}
62... Bd6 {[%clk 0:00:40.3]} 63. Kg2 {[%clk 0:00:17.6]} 63... Bc7 {[%clk
0:00:39]} 64. h5 {[%clk 0:00:15.7]} 64... Bd8 {[%clk 0:00:19.4]} 65. hxg6+
{[%clk 0:00:12.7]} 65... Kxg6 {[%clk 0:00:20.3]} 66. Ne2 {[%clk 0:00:12.6]}
66... Bxg5 {[%clk 0:00:20.9]} 67. Kf2 {[%clk 0:00:14.1]} 67... Kf6 {[%clk
0:00:22]} 68. Nc3 {[%clk 0:00:14.7]} 68... Ke6 {[%clk 0:00:22.8]} 69. Ke2 {[%clk
0:00:15.8]} 69... Be7 {[%clk 0:00:20.8]} 70. Nd1 {[%clk 0:00:16.5]} 70... Bb4
{[%clk 0:00:21.6]} 71. Nf2 {[%clk 0:00:17.6]} 71... Kd5 {[%clk 0:00:23.2]} 72.
Nh3 {[%clk 0:00:18.7]} 72... Bd6 {[%clk 0:00:24.3]} 73. Kd2 {[%clk 0:00:20.1]}
73... Kc4 {[%clk 0:00:25.2]} 74. Ke2 {[%clk 0:00:20]} 74... Kc3 {[%clk
0:00:23.5]} 75. Ng5 {[%clk 0:00:21.1]} 75... Kc4 {[%clk 0:00:22.5]} 76. Nf7
{[%clk 0:00:21.7]} 76... Bc7 {[%clk 0:00:23.8]} 77. Ng5 {[%clk 0:00:22.2]} 77...
Kd5 {[%clk 0:00:23.7]} 78. Nh3 {[%clk 0:00:22.7]} 78... f4 {[%clk 0:00:19.1]}
79. exf4 {[%clk 0:00:20.1]} 79... Bxf4 {[%clk 0:00:18.4]} 80. Nxf4+ {[%clk
0:00:20.6]} 80... Kxd4 {[%clk 0:00:20]} 81. Ng2 {[%clk 0:00:21.6]} 81... e3
{[%clk 0:00:21.1]} 82. Nxe3 {[%clk 0:00:23.5]} 1/2-1/2

[Event "*** Biggest EVER Titled Tuesday"]
[Site "Chess.com"]
[Date "2018.04.17"]
[Round "6"]
[White "shyam"]
[Black "SantoBlue"]
[Result "1-0"]
[WhiteElo "2586"]
[BlackElo "2643"]
[TimeControl "180+2"]
[EndTime "14:26:22 PDT"]
[Termination "shyam won by resignation"]

1. e4 {[%clk 0:03:01.9]} 1... e5 {[%clk 0:03:00.3]} 2. Nf3 {[%clk 0:03:02.6]}
2... Nc6 {[%clk 0:03:00.9]} 3. Bb5 {[%clk 0:03:03.9]} 3... a6 {[%clk 0:03:01.1]}
4. Ba4 {[%clk 0:03:05.1]} 4... Nf6 {[%clk 0:03:01.3]} 5. O-O {[%clk 0:03:06.1]}
5... Be7 {[%clk 0:03:02]} 6. Re1 {[%clk 0:03:06.2]} 6... b5 {[%clk 0:03:02.5]}
7. Bb3 {[%clk 0:03:06.6]} 7... O-O {[%clk 0:03:03]} 8. d3 {[%clk 0:03:06.7]}
8... d6 {[%clk 0:02:51.6]} 9. c3 {[%clk 0:03:06.5]} 9... Nb8 {[%clk 0:02:44.8]}
10. Nbd2 {[%clk 0:03:06.7]} 10... Nbd7 {[%clk 0:02:44.7]} 11. Nf1 {[%clk
0:03:08.6]} 11... Bb7 {[%clk 0:02:45.8]} 12. Ng3 {[%clk 0:03:04.3]} 12... Re8
{[%clk 0:02:38]} 13. Ng5 {[%clk 0:02:47.6]} 13... Rf8 {[%clk 0:02:38.6]} 14. Nf5
{[%clk 0:02:46.1]} 14... Nc5 {[%clk 0:02:36.6]} 15. Bc2 {[%clk 0:02:34.7]} 15...
Ne6 {[%clk 0:02:36.9]} 16. Qf3 {[%clk 0:02:28.8]} 16... Nd7 {[%clk 0:02:23.9]}
17. Nxe7+ {[%clk 0:02:14.4]} 17... Qxe7 {[%clk 0:02:24.3]} 18. Qh5 {[%clk
0:01:58.1]} 18... h6 {[%clk 0:02:06.1]} 19. Nxe6 {[%clk 0:01:48.3]} 19... fxe6
{[%clk 0:02:05.9]} 20. Re3 {[%clk 0:01:42.7]} 20... Nf6 {[%clk 0:01:58.9]} 21.
Qh4 {[%clk 0:01:41.7]} 21... Nd5 {[%clk 0:01:57]} 22. Qxe7 {[%clk 0:01:38.5]}
22... Nxe7 {[%clk 0:01:58.9]} 23. Bb3 {[%clk 0:01:34.4]} 23... Rf6 {[%clk
0:01:55.3]} 24. a4 {[%clk 0:01:34.8]} 24... Ng6 {[%clk 0:01:48.6]} 25. g3 {[%clk
0:01:24.1]} 25... Nf8 {[%clk 0:01:47.2]} 26. Kg2 {[%clk 0:01:23.5]} 26... Nd7
{[%clk 0:01:47.6]} 27. axb5 {[%clk 0:01:15.9]} 27... axb5 {[%clk 0:01:48.1]} 28.
Rxa8+ {[%clk 0:01:17.8]} 28... Bxa8 {[%clk 0:01:50]} 29. f3 {[%clk 0:01:16.6]}
29... Bb7 {[%clk 0:01:39.2]} 30. Re1 {[%clk 0:01:14.9]} 30... Nc5 {[%clk
0:01:35.3]} 31. Bc2 {[%clk 0:01:16]} 31... Rf8 {[%clk 0:01:35.1]} 32. Be3 {[%clk
0:01:04.3]} 32... Ra8 {[%clk 0:01:35.6]} 33. Bxc5 {[%clk 0:01:05.1]} 33... dxc5
{[%clk 0:01:37.5]} 34. Bb3 {[%clk 0:01:06.9]} 34... Kf7 {[%clk 0:01:37.3]} 35.
h4 {[%clk 0:01:05.2]} 35... Ke7 {[%clk 0:01:34.9]} 36. Kf2 {[%clk 0:01:01.3]}
36... Kd6 {[%clk 0:01:26.7]} 37. Ke3 {[%clk 0:01:00.1]} 37... Bc6 {[%clk
0:01:22.1]} 38. h5 {[%clk 0:00:59.1]} 38... Be8 {[%clk 0:01:22]} 39. Rh1 {[%clk
0:00:58.1]} 39... Ke7 {[%clk 0:01:21.2]} 40. f4 {[%clk 0:00:58.3]} 40... exf4+
{[%clk 0:01:20.9]} 41. gxf4 {[%clk 0:01:00.2]} 41... Rb8 {[%clk 0:01:21.6]} 42.
Rg1 {[%clk 0:00:48.6]} 42... c4 {[%clk 0:01:16.2]} 43. dxc4 {[%clk 0:00:43.6]}
43... bxc4 {[%clk 0:01:17.6]} 44. Bxc4 {[%clk 0:00:45.5]} 44... Rxb2 {[%clk
0:01:17.7]} 45. Rxg7+ {[%clk 0:00:45.2]} 45... Kd6 {[%clk 0:01:07.5]} 46. e5+
{[%clk 0:00:44.8]} 46... Kc6 {[%clk 0:01:08.9]} 47. Rh7 {[%clk 0:00:40.9]} 47...
Bxh5 {[%clk 0:01:06.4]} 48. Rxh6 {[%clk 0:00:41.7]} 48... Kc5 {[%clk 0:01:00.9]}
49. Bxe6 {[%clk 0:00:31.4]} 49... Bd1 {[%clk 0:00:59.4]} 50. f5 {[%clk
0:00:24.2]} 50... Re2+ {[%clk 0:00:44.8]} 51. Kf4 {[%clk 0:00:25.2]} 51... Bc2
{[%clk 0:00:46.2]} 52. Rh3 {[%clk 0:00:21.4]} 52... Re4+ {[%clk 0:00:44.6]} 53.
Kg5 {[%clk 0:00:22.5]} 53... Rxe5 {[%clk 0:00:45.4]} 54. Kf4 {[%clk 0:00:18.5]}
54... Re4+ {[%clk 0:00:45.9]} 55. Kg5 {[%clk 0:00:18.7]} 55... Kd6 {[%clk
0:00:47.2]} 56. Kf6 {[%clk 0:00:19.6]} 56... Re1 {[%clk 0:00:45.3]} 57. Rh2
{[%clk 0:00:20.5]} 57... Bb1 {[%clk 0:00:44.2]} 58. Rd2+ {[%clk 0:00:22.4]}
58... Kc5 {[%clk 0:00:45.6]} 59. Rd7 {[%clk 0:00:21.7]} 59... c6 {[%clk
0:00:46.2]} 60. c4 {[%clk 0:00:22.6]} 60... Ba2 {[%clk 0:00:39.5]} 61. Rc7
{[%clk 0:00:22.8]} 61... Bb1 {[%clk 0:00:38]} 62. Bd5 {[%clk 0:00:20.9]} 62...
Rf1 {[%clk 0:00:30.9]} 63. Rxc6+ {[%clk 0:00:22.2]} 63... Kd4 {[%clk 0:00:32.3]}
64. Be6 {[%clk 0:00:23.4]} 64... Be4 {[%clk 0:00:33.7]} 65. Rd6+ {[%clk
0:00:24]} 65... Kc5 {[%clk 0:00:35]} 66. Rd8 {[%clk 0:00:25.3]} 66... Bc2 {[%clk
0:00:30.3]} 67. Rc8+ {[%clk 0:00:26]} 67... Kb6 {[%clk 0:00:26.8]} 68. c5+
{[%clk 0:00:27.9]} 68... Kb7 {[%clk 0:00:28.3]} 69. c6+ {[%clk 0:00:28.6]} 69...
Kb6 {[%clk 0:00:29.8]} 70. Rb8+ {[%clk 0:00:21.7]} 70... Kc7 {[%clk 0:00:29.7]}
71. Rc8+ {[%clk 0:00:22.2]} 71... Kb6 {[%clk 0:00:31.1]} 72. Bd7 {[%clk
0:00:23.6]} 72... Rd1 {[%clk 0:00:24.4]} 73. Ke7 {[%clk 0:00:22.4]} 73... Re1+
{[%clk 0:00:24.8]} 74. Kd8 {[%clk 0:00:21.3]} 74... Rd1 {[%clk 0:00:24.6]} 75.
Rb8+ {[%clk 0:00:21.7]} 75... Ka7 {[%clk 0:00:21.5]} 76. c7 {[%clk 0:00:17.8]}
76... Bxf5 {[%clk 0:00:20.4]} 77. c8=Q {[%clk 0:00:18.5]} 77... Rxd7+ {[%clk
0:00:21.1]} 78. Ke8 {[%clk 0:00:19]} 78... Bg4 {[%clk 0:00:18.4]} 79. Ra8+
{[%clk 0:00:18.1]} 79... Kb6 {[%clk 0:00:19.8]} 80. Ra6+ {[%clk 0:00:18.8]} 1-0